Workbook

Sheet до 6 лет
B3: СОГЛАСОВАНО: | E3: УТВЕРЖДАЮ:
E5: ________________________
D6: Директор М.И. Жинько
B17: ГБУ "Автозаводский детский дом-интернат"
B28: ПРИМЕРНОЕ ЧЕТЫРНАДЦАТИДНЕВНОЕ (ДВУХНЕДЕЛЬНОЕ) МЕНЮ ДЛЯ ВОСПИТАННИКОВ ДО 6 ЛЕТ
B50: 2021 год
B52: МЕНЮ
B54: П Е Р В Ы Й Д Е Н Ь
B55: ЗАВТРАК
A56: № рец | B56: Наименование блюда | C56: Выход | D56: Б | E56: Ж | F56: У | G56: К
A57: 223 | B57: Запеканка из творога с иогуртом | C57: 130 | D57: 19.138 | E57: 11.52 | F57: 14.823 | G57: 239.98
A58: 14 | B58: Масло сливочное | C58: 5 | D58: 0.04 | E58: 3.62 | F58: 0.06 | G58: 33.05
A59: 15 | B59: Сыр | C59: 15 | D59: 3.9 | E59: 3.9 | F59: - | G59: 54
B60: Кофейный напиток с молоком | C60: 200 | D60: 4 | E60: 4.07 | F60: 24.09 | G60: 152.8
B61: Батон | C61: 40 | D61: 3 | E61: 1.16 | F61: 20.56 | G61: 104.68
B62: Итого завтрак | D62: =SUM(D57:D61) -> 30.078 | E62: =SUM(E57:E61) -> 24.27 | F62: =SUM(F57:F61) -> 59.533 | G62: =SUM(G57:G61) -> 584.51
B63: ОБЕД
A64: 75 | B64: Икра свекольная | C64: 50 | D64: 0.76 | E64: 4.045 | F64: 5.125 | G64: 59.17
A65: 87 | B65: Щи со сметаной | C65: 200 | D65: 1.81 | E65: 6.192 | F65: 7.61 | G65: 93.66
A66: 268 | B66: Котлета мясная | C66: 55 | D66: 7.94 | E66: 13.18 | F66: 5.48 | G66: 171.4
A67: 203 | B67: Вермишель отварная | C67: 150 | D67: 5.34 | E67: 6.68 | F67: 35.77 | G67: 204.92
B68: Сок фруктовый, яблочный | C68: 150 | D68: 0.75 | E68: - | F68: 13.65 | G68: 105
B69: Хлеб ржаной | C69: 50 | D69: 3.28 | E69: 0.6 | F69: 16.7 | G69: 85.4
B70: Итого обед | D70: =SUM(D64:D69) -> 19.88 | E70: =SUM(E64:E69) -> 30.697 | F70: =SUM(F64:F69) -> 84.335 | G70: =SUM(G64:G69) -> 719.55
B71: ПОЛДНИК
B72: Зефир | C72: 30 | D72: 0.24 | E72: - | F72: 23.49 | G72: 89.7
B73: Банан | C73: 150 | D73: 1.5 | E73: 0.5 | F73: 21 | G73: 94.5
B74: Чай без сахара | C74: 200 | D74: 0.1 | E74: 0.025 | F74: 0.02 | G74: -
B75: Итого полдник | D75: =SUM(D72:D74) -> 1.84 | E75: =SUM(E72:E74) -> 0.525 | F75: =SUM(F72:F74) -> 44.51 | G75: =SUM(G72:G74) -> 184.2
B76: УЖИН
B77: Огурец свежий | C77: 75 | D77: 1.12 | E77: 0.07 | F77: 5.77 | G77: 27
A78: 228 | B78: Рыба припущенная в молоке | C78: 75 | D78: 6.82 | E78: 8.8 | F78: 4.92 | G78: 122.28
A79: 128 | B79: Картофельное пюре | C79: 150 | D79: 3.23 | E79: 5.04 | F79: 21.02 | G79: 150.35
A80: 349 | B80: Компот из сухофруктов | C80: 150 | D80: 0.38 | E80: - | F80: 23.12 | G80: 90.26
B81: Батон | C81: 30 | D81: 2.25 | E81: 0.87 | F81: 15.42 | G81: 78.51
B82: Итого ужин | D82: =SUM(D77:D81) -> 13.8 | E82: =SUM(E77:E81) -> 14.78 | F82: =SUM(F77:F81) -> 70.25 | G82: =SUM(G77:G81) -> 468.4
B83: ВТОРОЙ УЖИН
A84: 386 | B84: Кефир 2,5% | C84: 150 | D84: 4.2 | E84: 4.81 | F84: 7.06 | G84: 87.19
B85: Гренки/сухарики | C85: 10 | D85: 0.77 | E85: 0.24 | F85: 4.9 | G85: 35.4
B86: Итого второй ужин | D86: =SUM(D84:D85) -> 4.97 | E86: =SUM(E84:E85) -> 5.05 | F86: =SUM(F84:F85) -> 11.96 | G86: =SUM(G84:G85) -> 122.59
B88: Соль за целый день | C88: 8 | D88: - | E88: - | F88: - | G88: -
B90: Итого за день | D90: =D86+D82+D75+D70+D62 -> 70.568 | E90: =E86+E82+E75+E70+E62 -> 75.322 | F90: =F86+F82+F75+F70+F62 -> 270.588 | G90: =G86+G82+G75+G70+G62 -> 2079.25
B95: МЕНЮ
B97: В Т О Р О Й Д Е Н Ь
B98: ЗАВТРАК
B99: Наименование блюда | C99: Выход | D99: Б | E99: Ж | F99: У | G99: К
A100: 182 | B100: Каша пшенная | C100: 150 | D100: 5.64 | E100: 8.5 | F100: 26.81 | G100: 200.72
A101: 14 | B101: Масло сливочное | C101: 5 | D101: 0.04 | E101: 3.62 | F101: 0.06 | G101: 33.05
A102: 16 | B102: Колбаса отварная | C102: 15 | D102: 1.95 | E102: 2.91 | F102: - | G102: 34.05
A103: 378 | B103: Чай с молоком | C103: 200 | D103: 1.49 | E103: 1.615 | F103: 17.37 | G103: 85.85
B104: Яблоко свежее | C104: 150 | D104: 0.4 | E104: 0.4 | F104: 9.76 | G104: 44.48
B105: Батон | C105: 40 | D105: 3 | E105: 1.16 | F105: 20.56 | G105: 104.68
B106: Итого завтрак | D106: =SUM(D100:D105) -> 12.52 | E106: =SUM(E100:E105) -> 18.205 | F106: =SUM(F100:F105) -> 74.56 | G106: =SUM(G100:G105) -> 502.83
B107: ОБЕД
A108: 73 | B108: Икра кабачковая | C108: 50 | D108: 1 | E108: 4.5 | F108: 4.25 | G108: 61
A109: 82 | B109: Борщ со сметаной | C109: 200 | D109: 1.57 | E109: 6.165 | F109: 9.79 | G109: 98.06
A110: 231 | B110: Поджарка рыбная | C110: 95 | D110: 15.33 | E110: 8.86 | F110: 7.84 | G110: 172.44
A111: 304 | B111: Рис отварной | C111: 150 | D111: 3.84 | E111: 5.62 | F111: 38.86 | G111: 223.93
B112: Сок фруктовый, виноградный | C112: 150 | D112: 0.45 | E112: - | F112: 20.7 | G112: 81
B113: Хлеб ржаной | C113: 50 | D113: 3.28 | E113: 0.6 | F113: 16.7 | G113: 85.4
B114: Итого обед | D114: =SUM(D108:D113) -> 25.47 | E114: =SUM(E108:E113) -> 25.745 | F114: =SUM(F108:F113) -> 98.14 | G114: =SUM(G108:G113) -> 721.83
B115: ПОЛДНИК
A116: 210 | B116: Омлет натуральный с зеленым горошком | C116: 110 | D116: 7.19 | E116: 10.26 | F116: 3.81 | G116: 138.61
B117: Молоко топленое | C117: 200 | D117: 5.8 | E117: 8 | F117: 9.4 | G117: 132.8
B118: Итого полдник | D118: =SUM(D116:D117) -> 12.99 | E118: =SUM(E116:E117) -> 18.26 | F118: =SUM(F116:F117) -> 13.21 | G118: =SUM(G116:G117) -> 271.41
B119: УЖИН
B120: Помидоры свежие | C120: 75 | D120: 1.12 | E120: 0.07 | F120: 5.77 | G120: 27
A121: 299 | B121: Суфле из бройлеров-цыплят | C121: 60 | D121: 9.49 | E121: 13.515 | F121: 2.67 | G121: 171.01
A122: 143 | B122: Рагу овощное | C122: 150 | D122: 2.77 | E122: 5.7 | F122: 13.83 | G122: 128.09
A123: 348 | B123: Компот из кураги | C123: 150 | D123: 0.45 | E123: - | F123: 23.15 | G123: 89.9
B124: Батон | C124: 40 | D124: 3 | E124: 1.16 | F124: 20.56 | G124: 104.68
B125: Итого ужин | D125: =SUM(D120:D124) -> 16.83 | E125: =SUM(E120:E124) -> 20.445 | F125: =SUM(F120:F124) -> 65.98 | G125: =SUM(G120:G124) -> 520.68
B126: ВТОРОЙ УЖИН
B127: Ряженка | C127: 150 | D127: 4.2 | E127: 4.8 | F127: 8.29 | G127: 102.35
B128: Печенье | C128: 20 | D128: 1.48 | E128: 1.96 | F128: 14.88 | G128: 83.08
B129: Итого второй ужин | D129: =SUM(D127:D128) -> 5.68 | E129: =SUM(E127:E128) -> 6.76 | F129: =SUM(F127:F128) -> 23.17 | G129: =SUM(G127:G128) -> 185.43
B131: Соль за целый день | C131: 8 | D131: - | E131: - | F131: - | G131: -
B133: Итого за день | D133: =D129+D125+D118+D114+D106 -> 73.49 | E133: =E129+E125+E118+E114+E106 -> 89.415 | F133: =F129+F125+F118+F114+F106 -> 275.06 | G133: =G129+G125+G118+G114+G106 -> 2202.18
B136: МЕНЮ
B138: Т Р Е Т И Й Д Е Н Ь
B139: ЗАВТРАК
B140: Наименование блюда | C140: Выход | D140: Б | E140: Ж | F140: У | G140: К
A141: 219 | B141: Сырники из творога со сгущенным молоком | C141: 120 | D141: 20.33 | E141: 10.85 | F141: 34.71 | G141: 318.78
B142: Масло сливочное | C142: 5 | D142: 0.04 | E142: 3.62 | F142: 0.06 | G142: 33.05
A143: 209 | B143: Яйцо вареное | C143: 1 шт | D143: 5.1 | E143: 4.6 | F143: 0.28 | G143: 62.84
A144: 376 | B144: Чай с лимоном | C144: 200 | D144: 0.13 | E144: 0.02 | F144: 15.2 | G144: 62
B145: Батон | C145: 40 | D145: 3 | E145: 1.16 | F145: 20.56 | G145: 104.68
B146: Итого завтрак | D146: 28.6 | E146: 20.25 | F146: 70.81 | G146: 581.35
B147: ОБЕД
A148: 67 | B148: Винегрет овощной | C148: 50 | D148: 0.76 | E148: 5.07 | F148: 3.97 | G148: 64.65
A149: 103 | B149: Суп картофельный с вермишелью на курином бульоне | C149: 200 | D149: 2.19 | E149: 2.258 | F149: 16.38 | G149: 97.32
A150: 288 | B150: Цыпленок отварной | C150: 50 | D150: 10.55 | E150: 6.8 | F150: - | G150: 103.4
A151: 302 | B151: Каша гречневая рассыпчатая | C151: 150 | D151: 5.84 | E151: 4.77 | F151: 4.16 | G151: 237.4
B152: Апельсин | C152: 150 | D152: 0.9 | E152: 0.2 | F152: 8.1 | G152: 37.8
B153: Сок фруктовый, персиковый | C153: 150 | D153: 0.45 | E153: - | F153: 25.5 | G153: 99
B154: Хлеб ржаной | C154: 50 | D154: 3.28 | E154: 0.6 | F154: 16.7 | G154: 85.4
B155: Итого обед | D155: =SUM(D148:D154) -> 23.97 | E155: =SUM(E148:E153) -> 19.098 | F155: =SUM(F148:F153) -> 58.11 | G155: =SUM(G148:G154) -> 724.97
B156: ПОЛДНИК
B157: Вафли | C157: 25 | D157: 0.8 | E157: 0.7 | F157: 20 | G157: 87.5
B158: Чудо-молоко | C158: 200 | D158: 2.8 | E158: 2 | F158: 7.5 | G158: 67
B159: Итого полдник | D159: =SUM(D157:D158) -> 3.6 | E159: 2.7 | F159: =SUM(F157:F158) -> 27.5 | G159: =SUM(G157:G158) -> 154.5
B160: УЖИН
B161: Сельдь с/с | C161: 15 | D161: 2.5 | E161: 1.25 | F161: - | G161: 21.75
A162: 75 | B162: Икра морковная | C162: 50 | D162: 0.71 | E162: 4.045 | F162: 4.7 | G162: 56.18
A163: 268 | B163: Биточки мясные | C163: 80 | D163: 8.54 | E163: 11.1 | F163: 8.535 | G163: 167.07
A164: 125 | B164: Картофель отварной | C164: 150 | D164: 3.04 | E164: 4.41 | F164: 24.51 | G164: 154.7
A165: 348 | B165: Компот из груши | C165: 150 | D165: 0.12 | E165: 0.09 | F165: 20.81 | G165: 82.92
B166: Батон | C166: 30 | D166: 2.25 | E166: 0.87 | F166: 15.42 | G166: 78.51
B167: Итого ужин | D167: 17.16 | E167: 21.765 | F167: 73.975 | G167: 561.13
B168: ВТОРОЙ УЖИН
B169: Йогурт | C169: 150 | D169: 4.2 | E169: 4.81 | F169: 7.06 | G169: 87.17
B170: Батон | C170: 10 | D170: 0.75 | E170: 0.29 | F170: 5.14 | G170: 26.17
B171: Итого второй ужин | D171: =SUM(D169:D170) -> 4.95 | E171: =SUM(E169:E170) -> 5.1 | F171: =SUM(F169:F170) -> 12.2 | G171: =SUM(G169:G170) -> 113.34
B173: Соль за целый день | C173: 8 | D173: - | E173: - | F173: - | G173: -
B175: Итого за день | D175: 78.28 | E175: 68.92 | F175: =F171+F167+F159+F155+F146 -> 242.595 | G175: 2135.29
B176: МЕНЮ
B178: Ч Е Т В Е Р Т Ы Й Д Е Н Ь
B179: ЗАВТРАК
B180: Наименование блюда | C180: Выход | D180: Б | E180: Ж | F180: У | G180: К
B181: Наименование блюда | C181: Выход | D181: Б | E181: Ж | F181: У | G181: К
A182: 120 | B182: Суп молочный с крупой | C182: 150 | D182: 2.23 | E182: 2.68 | F182: 4.61 | G182: 53.4
A183: 14 | B183: Масло сливочное | C183: 5 | D183: 0.04 | E183: 3.62 | F183: 0.06 | G183: 33.05
A184: 16 | B184: Колбаса отварная | C184: 15 | D184: 1.95 | E184: 2.91 | F184: - | G184: 34.05
A185: 382 | B185: Какао с молоком | C185: 200 | D185: 3.76 | E185: 3.9 | F185: 25.81 | G185: 149
B186: Груша свежая | C186: 150 | D186: 0.4 | E186: 0.3 | F186: 10.3 | G186: 45.62
B187: Батон | C187: 40 | D187: 3 | E187: 1.16 | F187: 20.56 | G187: 104.68
B188: Итого завтрак | D188: 11.38 | E188: 14.57 | F188: 61.34 | G188: 419.8
B189: ОБЕД
B190: Икра кабачковая | C190: 50 | D190: 1 | E190: 4.5 | F190: 4.25 | G190: 61
A191: 101 | B191: Суп картофельный с рыбными фрикадельками | C191: 200 | D191: 7.35 | E191: 5.5 | F191: 12.52 | G191: 139.71
A192: 284 | B192: Запеканка картофельная с мясом | C192: 180 | D192: 16.16 | E192: 21.33 | F192: 33.65 | G192: 390.7
A193: 349 | B193: Сок фруктовый, яблочный | C193: 150 | D193: 0.75 | E193: - | F193: 13.65 | G193: 105
B194: Хлеб ржаной | C194: 50 | D194: 3.28 | E194: 0.6 | F194: 16.7 | G194: 85.4
B195: Итого обед | D195: 28.54 | E195: 31.93 | F195: 80.77 | G195: 781.81
B196: ПОЛДНИК
A197: 466 | B197: Пирожок с рисом и яйцом | C197: 100 | D197: 7.13 | E197: 7.75 | F197: 41.96 | G197: 265.33
B198: Молоко стерилизованное | C198: 200 | D198: 5.8 | E198: 5 | F198: 9.6 | G198: 106.6
B199: Итого полдник | D199: =SUM(D197:D198) -> 12.93 | E199: =SUM(E197:E198) -> 12.75 | F199: =SUM(F197:F198) -> 51.56 | G199: =SUM(G197:G198) -> 371.93
B200: УЖИН
B201: Огурец свежий | C201: 75 | D201: 1.12 | E201: 0.07 | F201: 5.77 | G201: 27
A202: 251 | B202: Поджарка мясная | C202: 65 | D202: 15.09 | E202: 17.72 | F202: 3.03 | G202: 228.13
A203: 139 | B203: Капуста тушеная | C203: 150 | D203: 3.312 | E203: 5.114 | F203: 14.68 | G203: 116.57
A204: 348 | B204: Компот из изюма | C204: 150 | D204: 0.38 | E204: - | F204: 23.12 | G204: 90.26
B205: Батон | C205: 40 | D205: 3 | E205: 1.16 | F205: 20.56 | G205: 104.68
B206: Итого ужин | D206: =SUM(D201:D205) -> 22.902 | E206: =SUM(E201:E205) -> 24.064 | F206: =SUM(F201:F205) -> 67.16 | G206: =SUM(G201:G205) -> 566.64
B207: ВТОРОЙ УЖИН
B208: Простокваша 2,5% | C208: 150 | D208: 4.35 | E208: 3.75 | F208: 5.97 | G208: 73.66
B209: Пряники | C209: 20 | D209: 0.96 | E209: 0.56 | F209: 15.54 | G209: 70
B210: Итого второй ужин | D210: =SUM(D208:D209) -> 5.31 | E210: =SUM(E208:E209) -> 4.31 | F210: =SUM(F208:F209) -> 21.51 | G210: =SUM(G208:G209) -> 143.66
B212: Соль за целый день | C212: 8 | D212: - | E212: - | F212: - | G212: -
B214: Итого за день | D214: =D210+D206+D199+D195+D188 -> 81.062 | E214: 87.62 | F214: =F210+F206+F199+F195+F188 -> 282.34 | G214: =G210+G206+G199+G195+G188 -> 2283.84
B215: Наименование блюда | C215: Выход | D215: Б | E215: Ж | F215: У | G215: К
B248: МЕНЮ
B250: П Я Т Ы Й Д Е Н Ь
B251: ЗАВТРАК
B252: Наименование блюда | C252: Выход | D252: Б | E252: Ж | F252: У | G252: К
B253: МЕНЮ
B255: П Я Т Ы Й Д Е Н Ь
B257: ЗАВТРАК
B258: Наименование блюда | C258: Выход | D258: Б | E258: Ж | F258: У | G258: К
A259: 181 | B259: Каша манная | C259: 150 | D259: 4.64 | E259: 7.84 | F259: 22.41 | G259: 178.9
A260: 14 | B260: Масло сливочное | C260: 5 | D260: 0.04 | E260: 3.62 | F260: 0.06 | G260: 33.05
A261: 15 | B261: Сыр | C261: 15 | D261: 3.9 | E261: 3.9 | F261: - | G261: 54
A262: 382 | B262: Кофейный напиток с молоком | C262: 200 | D262: 4 | E262: 4.07 | F262: 24.09 | G262: 152.8
B263: Яблоко свежее | C263: 150 | D263: 0.4 | E263: 0.4 | F263: 9.76 | G263: 44.48
B264: Батон | C264: 40 | D264: 3 | E264: 1.16 | F264: 20.56 | G264: 104.68
B265: Итого завтрак | D265: =SUM(D259:D264) -> 15.98 | E265: =SUM(E259:E264) -> 20.99 | F265: =SUM(F259:F264) -> 76.88 | G265: =SUM(G259:G264) -> 567.91
B266: ОБЕД
A267: 47 | B267: Салат из квашеной капусты | C267: 50 | D267: 0.77 | E267: 2.5 | F267: 3.9 | G267: 41.9
A268: 96 | B268: Рассольник "Ленинградский" со сметаной | C268: 200 | D268: 2.06 | E268: 6.3 | F268: 14.01 | G268: 123
A269: 260 | B269: Гуляш мясной | C269: 100 | D269: 15.075 | E269: 19.595 | F269: 1.281 | G269: 247.01
A270: 202 | B270: Рожки отварные | C270: 150 | D270: 5.34 | E270: 3.68 | F270: 35.77 | G270: 204.92
B271: Сок фруктовый, виноградный | C271: 150 | D271: 0.45 | E271: - | F271: 20.7 | G271: 81
B272: Хлеб ржаной | C272: 50 | D272: 3.28 | E272: 0.6 | F272: 16.7 | G272: 85.4
B273: Итого обед | D273: =SUM(D267:D272) -> 26.975 | E273: =SUM(E267:E272) -> 32.675 | F273: =SUM(F267:F272) -> 92.361 | G273: =SUM(G267:G272) -> 783.23
B274: ПОЛДНИК
A275: 420 | B275: Колбасные изделия, запеченные в тесте | C275: 75 | D275: 7.968 | E275: 7.38 | F275: 30.32 | G275: 219.44
A276: 385 | B276: Молоко кипяченое | C276: 200 | D276: 5.8 | E276: 6.4 | F276: 9.4 | G276: 118.4
B277: Итого полдник | D277: =SUM(D275:D276) -> 13.768 | E277: =SUM(E275:E276) -> 13.78 | F277: =SUM(F275:F276) -> 39.72 | G277: =SUM(G275:G276) -> 337.84
B278: УЖИН
A279: 240 | B279: Фрикадельки рыбные | C279: 80 | D279: 7.56 | E279: 2.82 | F279: 7.945 | G279: 86.28
A280: 126 | B280: Картофель отварной с луком | C280: 150 | D280: 4.38 | E280: 9.67 | F280: 27.03 | G280: 185.58
A281: 350 | B281: Кисель из кураги | C281: 150 | D281: 0.67 | E281: 0.045 | F281: 24.56 | G281: 115.95
B282: Батон | C282: 40 | D282: 3 | E282: 1.16 | F282: 20.56 | G282: 104.68
B283: Итого ужин | D283: 15.61 | E283: 13.695 | F283: 80.095 | G283: 492.49
B284: ВТОРОЙ УЖИН
B285: Снежок | C285: 150 | D285: 0.1 | E285: 0.3 | F285: 6.89 | G285: 37.95
B286: Вафли | C286: 20 | D286: 0.64 | E286: 0.56 | F286: 16 | G286: 70
B287: Итого второй ужин | D287: =SUM(D285:D286) -> 0.74 | E287: =SUM(E285:E286) -> 0.86 | F287: =SUM(F285:F286) -> 22.89 | G287: =SUM(G285:G286) -> 107.95
B289: Соль за целый день | C289: 8 | D289: - | E289: - | F289: - | G289: -
B291: Итого за день | D291: =D287+D283+D277+D273+D265 -> 73.073 | E291: =E287+E283+E277+E273+E265 -> 82 | F291: =F287+F283+F277+F273+F265 -> 311.946 | G291: =G287+G283+G277+G273+G265 -> 2289.42
B294: МЕНЮ
B296: Ш Е С Т О Й Д Е Н Ь
B298: ЗАВТРАК
B299: Наименование блюда | C299: Выход | D299: Б | E299: Ж | F299: У | G299: К
B322: МЕНЮ
B324: ЗАВТРАК
B325: Наименование блюда | C325: Выход | D325: Б | E325: Ж | F325: У | G325: К
A326: 224 | B326: Запеканка из творога с морковью | C326: 170 | D326: 20.99 | E326: 14.09 | F326: 33.33 | G326: 345.28
A327: 14 | B327: Масло сливочное | C327: 5 | D327: 0.04 | E327: 3.62 | F327: 0.06 | G327: 33.05
... 422 more rows
